bitfinex/quotes_BTCUSD_20250206
["timestamp","ask_amount","ask_price","bid_price","bid_amount"]
[1738854034046,0.91732546,97988.0,97987.0,1.09034218]
[1738854034274,0.1411261,97988.0,97987.0,1.05750743]
[1738854034475,1.33346533,97990.0,97989.0,0.43563711]
[1738854034828,1.24643533,97990.0,97989.0,1.02548679]
[1738854035032,1.24027718,97991.0,97990.0,0.43563511]
[1738854035213,1.07467718,97991.0,97990.0,0.45278533]
[1738854035341,0.65132718,97991.0,97990.0,0.45964459]
[1738854035546,0.64102718,97991.0,97990.0,0.50947127]
[1738854035949,0.60532718,97991.0,97990.0,0.50947127]
[1738854036160,0.60532718,97991.0,97990.0,0.80947127]
[1738854036367,0.49715718,97991.0,97990.0,0.80947127]
[1738854036776,0.49715718,97991.0,97990.0,0.82986489]
[1738854037158,0.49715718,97991.0,97990.0,0.81271467]
[1738854037278,0.35174632,97991.0,97990.0,1.06765556]
[1738854037507,0.33133632,97991.0,97990.0,0.78656179]
[1738854037701,0.00022428,98022.0,97991.0,0.17243411]
[1738854037908,0.00022428,98022.0,97991.0,0.19543411]
[1738854038127,1.63250121,97992.0,97991.0,0.71052528]
[1738854038322,0.99650753,97992.0,97991.0,0.71738139]
[1738854038589,0.95568753,97992.0,97991.0,0.71738139]
[1738854038978,0.86072741,97992.0,97991.0,0.71738139]
[1738854039138,0.86072741,97992.0,97991.0,1.25928139]
[1738854039343,0.77955741,97992.0,97991.0,1.29015175]
[1738854039721,0.71564741,97992.0,97991.0,0.98079264]
[1738854039913,0.53487741,97992.0,97991.0,0.94992228]
[1738854040113,0.53487741,97992.0,97991.0,0.24438139]
[1738854040315,0.53487741,97992.0,97991.0,0.23752528]
[1738854040538,0.53487741,97992.0,97991.0,0.23952528]
[1738854040946,0.53587741,97992.0,97991.0,0.2565399]
[1738854041121,0.53487741,97992.0,97991.0,0.3965399]
[1738854041352,0.53487741,97992.0,97991.0,0.2575399]
[1738854041556,0.53487741,97992.0,97991.0,0.2635399]
[1738854041759,0.53487741,97992.0,97991.0,0.4075399]
[1738854041966,0.53487741,97992.0,97991.0,0.2575399]
[1738854042167,0.53487741,97992.0,97991.0,0.2475399]
[1738854042345,0.53487741,97992.0,97991.0,0.2575399]
[1738854042551,0.53487741,97992.0,97991.0,0.24352528]
[1738854042763,0.53487741,97992.0,97991.0,0.24252528]
[1738854042968,0.53487741,97992.0,97991.0,0.24352528]
[1738854043171,0.53487741,97992.0,97991.0,0.38352528]
[1738854043375,0.53487741,97992.0,97991.0,0.22416617]
[1738854043376,0.61357741,97992.0,97991.0,0.22416617]
[1738854043578,0.66007741,97992.0,97991.0,0.22316617]
[1738854043803,0.66107741,97992.0,97991.0,0.23016617]
[1738854043925,0.66107741,97992.0,97991.0,0.22516617]
[1738854044336,0.66107741,97992.0,97991.0,0.07409117]
[1738854044553,0.66107741,97992.0,97991.0,0.22416617]
[1738854044964,0.66207741,97992.0,97991.0,0.23316617]
[1738854045658,0.66107741,97992.0,97991.0,0.22416617]
[1738854046025,0.66007741,97992.0,97991.0,0.21816617]
[1738854046393,0.66030169,97992.0,97991.0,0.22216617]
[1738854046728,0.66030169,97992.0,97991.0,0.21816617]
[1738854047131,0.66030169,97992.0,97991.0,0.23152528]
[1738854047326,0.53610169,97992.0,97991.0,0.42352528]
[1738854047532,0.51569169,97992.0,97991.0,0.41952528]
[1738854047733,0.51569169,97992.0,97991.0,0.42352528]
[1738854047940,0.51669169,97992.0,97991.0,0.43252528]
[1738854048525,0.43505169,97992.0,97991.0,0.43252528]
[1738854048795,0.41464169,97992.0,97991.0,0.43252528]
[1738854048995,0.41264169,97992.0,97991.0,0.41452528]
[1738854049198,0.41364169,97992.0,97991.0,0.45985347]
[1738854049411,0.35241169,97992.0,97991.0,0.45985347]
[1738854049623,0.31159169,97992.0,97991.0,0.46485347]
[1738854050265,0.31159169,97992.0,97991.0,0.76485347]
[1738854050484,0.17215661,97992.0,97991.0,0.76587098]
[1738854050705,0.17215661,97992.0,97991.0,0.77674382]
[1738854050913,0.17315661,97992.0,97991.0,0.77474382]
[1738854051327,0.11044233,97992.0,97991.0,0.77674382]
[1738854051742,1.6902022,97993.0,97992.0,0.19235911]
[1738854051946,1.6902022,97993.0,97992.0,0.33269967]
[1738854052366,1.6697922,97993.0,97992.0,0.33269967]
[1738854052567,1.6289722,97993.0,97992.0,0.32334056]
[1738854052784,1.5881522,97993.0,97992.0,1.17459967]
[1738854053401,1.5473322,97993.0,97992.0,1.17759967]
[1738854053611,1.4861022,97993.0,97992.0,1.17759967]
[1738854054025,1.37717692,97993.0,97992.0,1.18659967]
[1738854054165,1.37717692,97993.0,97992.0,1.17759967]
[1738854054371,1.35676692,97993.0,97992.0,1.17759967]
[1738854054585,1.27512692,97993.0,97992.0,1.33967267]
[1738854054788,1.27512692,97993.0,97992.0,1.33067267]
[1738854055407,1.27512692,97993.0,97992.0,1.33667267]
[1738854055408,1.19348692,97993.0,97992.0,1.33667267]
[1738854055608,1.15011946,97993.0,97992.0,1.32667267]
[1738854056191,1.15011946,97993.0,97992.0,1.02031356]
[1738854056337,1.10929946,97993.0,97992.0,1.32967267]
[1738854056515,1.04806946,97993.0,97992.0,1.33967267]
[1738854056725,0.81975822,97993.0,97992.0,1.32767267]
[1738854056931,0.74891655,97993.0,97992.0,1.33167267]
[1738854057144,0.74891655,97993.0,97992.0,1.34067267]
[1738854057345,0.70809655,97993.0,97992.0,1.33167267]
[1738854057552,0.68768655,97993.0,97992.0,1.34067267]
[1738854057785,0.66727655,97993.0,97992.0,1.34067267]
[1738854058017,0.64686755,97993.0,97992.0,1.33167267]
[1738854058217,0.58310143,97993.0,97992.0,1.35968025]
[1738854058393,0.56269243,97993.0,97992.0,1.35968025]
[1738854059023,0.52187443,97993.0,97992.0,1.35568025]
[1738854059223,0.50146543,97993.0,97992.0,1.35968025]
[1738854059429,0.47889866,97993.0,97992.0,1.35968025]
[1738854059929,0.37525272,97993.0,97992.0,1.34567267]
[1738854060141,0.37525272,97993.0,97992.0,1.33267267]
[1738854060281,0.35484372,97993.0,97992.0,1.33267267]
[1738854060500,0.31402572,97993.0,97992.0,1.34167267]
[1738854060684,0.27320772,97993.0,97992.0,1.33267267]
[1738854061087,0.273432,97993.0,97992.0,1.34167267]
[1738854061290,0.253023,97993.0,97992.0,1.34167267]
[1738854061520,0.212205,97993.0,97992.0,1.33267267]
[1738854061766,0.171387,97993.0,97992.0,1.32767267]
[1738854061986,0.171387,97993.0,97992.0,1.44043267]
[1738854062190,0.171387,97993.0,97992.0,1.44979267]
[1738854062375,0.130569,97993.0,97992.0,1.44979267]
[1738854062919,0.11016,97993.0,97992.0,1.51107267]
[1738854063124,0.11016,97993.0,97992.0,1.44979267]
[1738854063125,0.069342,97993.0,97992.0,1.44979267]
[1738854063325,1.82443986,97994.0,97993.0,0.17243111]
[1738854063532,1.82443986,97994.0,97993.0,0.47209385]
[1738854063731,1.82443986,97994.0,97993.0,0.48509385]
[1738854063969,1.82443986,97994.0,97993.0,0.49509385]
[1738854064390,1.72239486,97994.0,97993.0,0.47637474]
[1738854064607,1.72239486,97994.0,97993.0,0.79509385]
[1738854064815,1.72239486,97994.0,97993.0,0.80409385]
[1738854065014,1.72239486,97994.0,97993.0,0.80009385]
[1738854065459,1.61443253,97994.0,97993.0,0.80409385]
[1738854065692,1.55441342,97994.0,97993.0,0.79509385]
[1738854065919,1.52587876,97994.0,97993.0,1.33999385]
[1738854066126,1.52587876,97994.0,97993.0,1.34899385]
[1738854066324,1.50546976,97994.0,97993.0,1.33599385]
[1738854066543,1.40766171,97994.0,97993.0,1.34599385]
[1738854066766,1.40766171,97994.0,97993.0,1.35099385]
[1738854067283,1.38725271,97994.0,97993.0,1.35099385]
[1738854067529,1.30561671,97994.0,97993.0,1.34199385]
[1738854067835,1.30561671,97994.0,97993.0,0.77609385]
[1738854068008,1.30561671,97994.0,97993.0,0.80009385]
[1738854068410,1.26479871,97994.0,97993.0,0.79909385]
[1738854068620,1.26479871,97994.0,97993.0,0.62173385]
[1738854068833,1.26479871,97994.0,97993.0,0.33073385]
[1738854069038,1.26479871,97994.0,97993.0,0.45276566]
[1738854069463,1.26479871,97994.0,97993.0,0.44976566]
[1738854069683,1.26479871,97994.0,97993.0,0.29976566]
[1738854069884,1.26579871,97994.0,97993.0,0.30776566]
[1738854070114,1.26579871,97994.0,97993.0,0.44776566]
[1738854070308,1.26579871,97994.0,97993.0,0.45776566]
[1738854070538,1.26579871,97994.0,97993.0,0.43976566]
[1738854070812,1.26579871,97994.0,97993.0,0.42940655]
[1738854071034,1.31229871,97994.0,97993.0,0.45240655]
[1738854071431,1.31229871,97994.0,97993.0,0.47176566]
[1738854072077,1.16375371,97994.0,97993.0,0.47176566]
[1738854072204,1.16375371,97994.0,97993.0,0.50269516]
[1738854072405,1.06170871,97994.0,97993.0,0.50269516]
[1738854073262,1.03076798,97994.0,97993.0,0.52299876]
[1738854073494,0.90605096,97994.0,97993.0,0.52299876]
[1738854073678,0.84668632,97994.0,97993.0,1.06489876]
[1738854073926,0.8032495,97994.0,97993.0,1.06489876]
[1738854074183,0.71795325,97994.0,97993.0,1.05589876]
[1738854074381,1.71436597,97995.0,97994.0,0.34542911]
[1738854074619,1.63272997,97995.0,97994.0,0.47886226]
[1738854074765,1.6301602,97995.0,97994.0,0.48572594]
[1738854074968,0.62677824,97995.0,97994.0,0.48572594]
[1738854075169,0.28698978,97995.0,97994.0,0.94634267]
[1738854075393,0.23099773,97995.0,97994.0,0.94634267]
[1738854075592,0.00022428,98022.0,97994.0,0.94634267]
[1738854075593,0.00022428,98022.0,98021.0,0.49235911]
[1738854075808,0.00022428,98022.0,98021.0,0.77882026]
[1738854075948,0.00022428,98022.0,98021.0,0.78559876]
[1738854076166,0.00022428,98022.0,98021.0,0.48559876]
[1738854076368,0.00022428,98022.0,98021.0,0.50503219]
[1738854076794,0.00027062,98022.0,98021.0,0.48631308]
[1738854077033,0.00027062,98022.0,98021.0,0.49667308]
[1738854077240,0.00027062,98022.0,98021.0,0.46367219]
[1738854077393,0.00027062,98022.0,98021.0,0.44274269]
[1738854077590,0.00027062,98022.0,98021.0,0.79665968]
[1738854077819,6.2e-07,98022.0,98021.0,0.80565968]
[1738854078222,6.2e-07,98022.0,98021.0,0.79565968]
[1738854078416,6.2e-07,98022.0,98021.0,0.80065968]
[1738854078856,6.2e-07,98022.0,98021.0,0.80265968]
[1738854079222,6.2e-07,98022.0,98021.0,0.81001968]
[1738854079629,6.2e-07,98022.0,98021.0,0.81101968]
[1738854079833,6.2e-07,98022.0,98021.0,0.80165968]
[1738854080035,6.2e-07,98022.0,98021.0,0.47865968]
[1738854080237,6.2e-07,98022.0,98021.0,0.47365968]
[1738854080658,0.0001339,98040.0,98039.0,0.303]
[1738854080866,0.0001339,98040.0,98039.0,0.40564286]
[1738854081110,0.0001339,98040.0,98039.0,0.42172371]
[1738854081261,0.0001339,98040.0,98039.0,0.45472371]
[1738854081463,0.0001339,98040.0,98039.0,0.48569853]
[1738854081964,0.0001339,98040.0,98039.0,0.46169853]
[1738854082197,0.0001339,98040.0,98039.0,0.43172371]
[1738854082433,0.0001339,98040.0,98039.0,0.46272873]
[1738854082679,0.0001339,98040.0,98039.0,0.44336962]
[1738854082880,0.0001339,98040.0,98039.0,0.10250365]
[1738854082881,0.1275339,98040.0,98039.0,0.10250365]
[1738854083310,0.048,98038.0,98010.0,0.00935911]
[1738854083311,0.1311,98038.0,98010.0,0.01]
[1738854083573,0.0831,98037.0,98036.0,0.153005]
[1738854083796,0.0831,98037.0,98036.0,0.21512812]
[1738854084047,0.0831,98037.0,98036.0,0.06212312]
[1738854084273,0.0831,98037.0,98013.0,0.204054]
[1738854084479,0.0831,98035.0,98014.0,0.06249658]
[1738854084680,0.0789,98033.0,98014.0,0.06249658]
[1738854084893,0.0789,98033.0,98023.0,0.153024]
[1738854085096,0.0789,98033.0,98024.0,0.00101999]
[1738854085303,0.00064089,98029.0,98008.0,0.09137179]
[1738854085512,0.0788,98024.0,98009.0,0.07261396]
[1738854085715,0.0788,98024.0,98014.0,0.009]
[1738854085946,0.0788,98024.0,98022.0,0.153026]
[1738854086157,0.0788,98024.0,98022.0,0.25552965]
[1738854086563,0.0788,98024.0,98023.0,0.10250365]
[1738854087026,0.0788,98024.0,98018.0,0.204043]
[1738854087233,0.0788,98024.0,98019.0,0.15102006]
[1738854087417,0.0788,98024.0,98022.0,0.153025]
[1738854087794,0.0788,98024.0,98023.0,0.11252368]
[1738854087996,0.0788,98024.0,98023.0,0.11150365]
[1738854088173,0.0788,98024.0,98023.0,0.10250365]
[1738854088790,0.0788,98024.0,97999.0,0.153061]
[1738854088989,0.00064089,98015.0,98000.0,0.00102008]
[1738854089250,0.00064089,98015.0,97981.0,0.10059161]
[1738854089251,0.00064089,98009.0,97981.0,0.0912325]
[1738854089475,0.00064089,98009.0,97985.0,0.153083]
[1738854089476,0.0773,98007.0,97985.0,0.153083]
[1738854089773,0.0773,98007.0,97994.0,0.00015314]
[1738854089893,0.02008745,97999.0,97994.0,0.00015314]
[1738854090098,0.00054089,97992.0,97978.0,0.0912325]
[1738854090299,0.12364089,97992.0,97978.0,0.0912325]
[1738854090530,0.12364089,97992.0,97979.0,0.00112725]
[1738854090920,0.0823,97991.0,97979.0,0.0001068]
[1738854091143,0.04774089,97992.0,97979.0,0.00112726]
[1738854091144,0.0823,97987.0,97979.0,0.00112726]
[1738854091353,0.08284089,97983.0,97979.0,0.0001068]
[1738854092071,0.0797,97980.0,97979.0,0.0001068]
[1738854092274,0.0797,97980.0,97978.0,0.0912325]
[1738854092275,0.00054089,97979.0,97978.0,0.0413393]
[1738854092501,0.08024089,97979.0,97978.0,0.0413393]
[1738854092637,0.08024089,97979.0,97964.0,0.153116]
[1738854092829,0.08024089,97976.0,97965.0,0.00102058]
[1738854093221,0.00054089,97967.0,97960.0,0.00013877]
[1738854093465,0.0757,97966.0,97961.0,0.00102063]
[1738854093639,0.0757,97966.0,97960.0,0.00013877]
[1738854094125,0.0757,97966.0,97965.0,0.003]
[1738854095767,0.0757,97966.0,97965.0,0.012]
[1738854095921,0.07624089,97966.0,97965.0,0.009]
[1738854096855,0.0757,97966.0,97965.0,0.162115]
[1738854097216,0.0757,97966.0,97965.0,0.163115]
[1738854097414,0.0757,97966.0,97965.0,0.154115]
[1738854097823,0.0757,97966.0,97965.0,0.2646393]
[1738854098083,0.0757,97966.0,97965.0,0.25561865]
[1738854098376,0.02046663,97969.0,97960.0,0.20430277]
[1738854098377,0.07994089,97961.0,97960.0,0.00013877]
[1738854098613,0.12654089,97961.0,97960.0,0.00013877]
[1738854099435,0.12654089,97961.0,97960.0,0.00024557]
[1738854100286,0.126,97961.0,97960.0,0.00024557]
[1738854100495,0.126,97961.0,97960.0,0.00924557]
[1738854100700,0.0794,97961.0,97960.0,0.26487222]
[1738854100893,0.0794,97961.0,97960.0,0.26787222]
[1738854101068,0.077,97979.0,97978.0,0.153095]
[1738854101267,0.077,97979.0,97978.0,0.25559865]
[1738854101698,0.077,97979.0,97978.0,0.10250365]
[1738854101913,0.077,97979.0,97960.0,0.00224557]
[1738854101914,0.077,97979.0,97960.0,0.01124557]
[1738854102214,0.077,97979.0,97967.0,0.20415]
[1738854102419,0.077,97979.0,97968.0,0.10352423]
[1738854102629,0.077,97979.0,97978.0,0.153095]
[1738854103188,0.077,97979.0,97971.0,0.20414]
[1738854103417,0.077,97979.0,97962.0,0.15]
[1738854103612,0.077,97979.0,97978.0,0.007]
[1738854103877,0.077,97979.0,97971.0,0.00102055]
[1738854104184,0.077,97979.0,97978.0,0.009]
[1738854104418,0.077,97979.0,97978.0,0.012]
[1738854104618,0.077,97979.0,97978.0,0.003]
[1738854104818,0.077,97979.0,97978.0,0.009]
[1738854105235,0.077,97979.0,97971.0,0.001]
[1738854105440,0.07754089,97979.0,97978.0,0.009]
[1738854105854,0.12744089,97979.0,97978.0,0.009]
[1738854106653,0.12744089,97979.0,97955.0,0.204174]
[1738854106815,0.12744089,97979.0,97978.0,0.002]
[1738854107444,0.12744089,97979.0,97974.0,0.153101]
[1738854107656,0.12744089,97979.0,97978.0,0.009]
[1738854107873,0.12744089,97979.0,97978.0,0.002]
[1738854108306,0.12744089,97979.0,97978.0,0.009]
[1738854108511,0.00054089,97977.0,97960.0,0.00126613]
[1738854108641,0.00054089,97975.0,97960.0,0.10274922]
[1738854108850,0.00054089,97971.0,97960.0,0.10274922]
[1738854109046,0.00054089,97971.0,97961.0,0.153122]
[1738854109245,0.00054089,97971.0,97960.0,0.10274922]
[1738854109465,0.00054089,97970.0,97960.0,0.10274922]
[1738854109874,0.0826,97969.0,97960.0,0.10274922]
[1738854110284,0.0826,97969.0,97960.0,0.00024557]
[1738854110285,0.00054089,97961.0,97960.0,0.00024557]
[1738854110442,0.00054089,97961.0,97930.0,0.0001068]
[1738854110443,0.00054089,97945.0,97930.0,0.0001068]
[1738854110643,0.00054089,97941.0,97931.0,0.10352451]
[1738854110851,0.00054089,97941.0,97935.0,0.153162]
[1738854111075,0.00054089,97941.0,97936.0,0.00102092]
[1738854111274,0.00054089,97941.0,97932.0,0.00102091]
[1738854111682,0.00054089,97941.0,97930.0,0.00057017]
[1738854111683,0.00054089,97931.0,97930.0,0.00057017]
[1738854111880,0.00054089,97931.0,97930.0,0.00957017]
[1738854112087,0.0801,97934.0,97930.0,0.00057017]
[1738854112296,0.02033131,97937.0,97896.0,0.0001067]
[1738854112297,0.07834089,97912.0,97896.0,0.0001067]
[1738854112489,0.00054089,97903.0,97896.0,0.0001067]
[1738854112694,0.00054089,97907.0,97896.0,0.00112808]
[1738854112898,0.00054089,97905.0,97904.0,0.153211]
[1738854113096,0.00054089,97905.0,97903.0,0.153212]
[1738854113314,0.0778,97912.0,97904.0,0.10352492]
[1738854113516,0.0778,97912.0,97911.0,0.1532]
[1738854114151,0.07826363,97912.0,97911.0,0.25570365]
[1738854114356,0.00046363,97912.0,97911.0,0.25570365]
[1738854114573,0.00046363,97912.0,97911.0,0.40570365]
[1738854114719,0.00046363,97912.0,97911.0,0.41470365]
[1738854115129,0.00054089,97925.0,97924.0,0.15318]
[1738854115400,0.00054089,97925.0,97924.0,0.15326481]
[1738854115749,0.00054089,97927.0,97924.0,0.01906519]
[1738854115924,0.07844089,97928.0,97924.0,0.01906519]
[1738854116125,0.00054089,97925.0,97924.0,0.01906519]
[1738854116928,0.00054089,97925.0,97924.0,0.02906519]
[1738854118417,0.00054089,97926.0,97924.0,0.18224519]
[1738854118618,0.0779,97928.0,97927.0,0.153175]
[1738854119344,0.18883201,97960.0,97927.0,0.153175]
[1738854119345,0.0829,97954.0,97928.0,0.15]
[1738854119555,0.0829,97954.0,97953.0,0.153134]
[1738854119957,0.0766,97965.0,97963.0,0.153119]
[1738854120302,0.00054089,97976.0,97964.0,0.10250365]
[1738854120504,0.081,97988.0,97986.0,0.153081]
[1738854120920,0.00054089,97997.0,97987.0,0.10250365]
[1738854121090,0.18883201,98020.0,97991.0,0.153075]
[1738854121091,0.02144775,97996.0,97991.0,0.153075]
[1738854121299,0.00054089,97993.0,97991.0,0.153075]
[1738854121522,0.00013911,97992.0,97991.0,0.25659898]
[1738854121718,0.00013911,97992.0,97991.0,0.27455903]
[1738854122769,0.00013911,97992.0,97991.0,0.25557865]
[1738854123152,0.00013911,97992.0,97991.0,0.10250365]
[1738854123495,0.00068,97992.0,97990.0,0.153076]
[1738854123876,0.00013911,97992.0,97991.0,0.00402031]
[1738854124213,0.00013911,97992.0,97991.0,0.01002031]
[1738854124414,0.00013911,97992.0,97991.0,0.00102031]
[1738854124639,0.00013911,97992.0,97991.0,0.10552396]
[1738854124847,0.00068,97992.0,97991.0,0.002]
[1738854125211,0.00054089,97991.0,97990.0,0.009]
[1738854126283,0.00054089,97974.0,97970.0,0.153107]
[1738854126491,0.00054089,97974.0,97971.0,0.1035241]
[1738854126696,0.00054089,97983.0,97972.0,0.15412438]
[1738854126903,0.00054089,97983.0,97974.0,0.204135]
[1738854127083,0.00054089,97980.0,97979.0,0.153094]
[1738854127318,0.00054089,97985.0,97979.0,0.10352413]
[1738854127528,0.00013911,97992.0,97980.0,0.10352405]
[1738854127736,0.00054089,97986.0,97983.0,0.204117]
[1738854127937,0.00054089,97986.0,97985.0,0.153084]
[1738854128147,0.00013911,97992.0,97989.0,0.204103]
[1738854128352,0.00013911,97992.0,97991.0,0.153075]
[1738854128571,0.00013911,97992.0,97991.0,0.25557865]
[1738854129108,0.00013911,97992.0,97980.0,0.003]
[1738854129109,0.00054089,97986.0,97980.0,0.003]
[1738854129307,0.00054089,97986.0,97985.0,0.153084]
[1738854129494,0.00013911,97992.0,97991.0,0.153075]
[1738854129693,0.00068,97992.0,97991.0,0.00102036]
[1738854129950,0.00068,97992.0,97991.0,0.009]
[1738854130129,0.00068,97992.0,97989.0,0.15409736]
[1738854130344,0.00013911,97992.0,97991.0,0.153075]
[1738854130513,0.00013911,97992.0,97991.0,0.25659901]
[1738854130715,0.00013911,97992.0,97991.0,0.25557865]
[1738854131136,0.00013911,97992.0,97991.0,0.26757865]
[1738854131544,0.00013911,97992.0,97991.0,0.26457865]
[1738854131924,0.00013911,97992.0,97991.0,0.26757865]
[1738854132143,0.00013911,97992.0,97991.0,0.44057865]
[1738854132566,0.00054089,98012.0,97991.0,0.44057865]
[1738854132567,0.00054089,98012.0,97996.0,0.204088]
[1738854132795,0.00100501,98012.0,98010.0,0.153044]
[1738854132951,0.00054089,98005.0,97991.0,0.003]
[1738854133132,0.00054089,98005.0,98002.0,0.204076]
[1738854133338,0.00054089,98004.0,98003.0,0.10250365]
[1738854133552,0.00054089,98004.0,97991.0,0.003]
[1738854133553,0.00054089,97993.0,97991.0,0.003]
[1738854133750,0.00054089,97988.0,97967.0,0.01]
[1738854133956,0.0757,97993.0,97961.0,0.254061]
[1738854133957,0.00054089,97997.0,97991.0,0.004]
[1738854134195,0.00054089,97997.0,97996.0,0.153067]
[1738854134409,0.00054089,97997.0,97995.0,0.00102031]
[1738854134716,0.00054089,97996.0,97995.0,0.00102031]
[1738854134871,0.00054089,97996.0,97995.0,0.25659296]
[1738854135075,0.00054089,98009.0,98004.0,0.204071]
[1738854135306,0.00054089,98010.0,98009.0,0.153047]
[1738854135478,0.00054089,98010.0,98009.0,0.25657081]
[1738854135680,0.00054089,98010.0,98009.0,0.25555065]
[1738854136308,0.00054089,98010.0,98009.0,0.10250365]
[1738854136725,0.00054089,98004.0,98003.0,0.204073]
[1738854136938,0.00054089,98004.0,98003.0,0.30657665]
[1738854137143,0.00054089,98009.0,98008.0,0.153048]
[1738854137371,0.00054089,98009.0,98008.0,0.25657179]
[1738854137574,0.00054089,98009.0,98008.0,0.25555165]
[1738854138008,0.00054089,98009.0,98006.0,0.204067]
[1738854138009,0.02013365,98011.0,98003.0,0.009]
[1738854138010,0.00054089,98004.0,98003.0,0.009]
[1738854138213,0.07614089,98004.0,98003.0,0.009]
[1738854138424,0.22919489,98004.0,98003.0,0.009]
[1738854138806,0.33169854,98004.0,98003.0,0.009]
[1738854139223,0.33169854,98004.0,97946.0,0.01009542]
[1738854139224,0.08284089,97988.0,97946.0,0.01009542]
[1738854139426,0.204101,97991.0,97947.0,0.10250365]
[1738854139427,0.00054089,97953.0,97947.0,0.10250365]
[1738854139748,0.00054089,97948.0,97947.0,0.10250365]
[1738854139989,0.00054089,97948.0,97947.0,0.25564765]
[1738854140828,0.00054089,97948.0,97947.0,0.26464765]
[1738854141049,0.00054089,97948.0,97947.0,0.10264276]
[1738854141254,0.00054089,97948.0,97947.0,0.25878676]
[1738854141563,0.00054089,97948.0,97947.0,0.25578676]
[1738854141977,0.00054089,97948.0,97947.0,0.25878676]
[1738854142359,0.00054089,97948.0,97947.0,0.26778676]
[1738854142491,0.00154089,97948.0,97947.0,0.11464276]
[1738854142695,0.00154089,97948.0,97947.0,0.01213911]
[1738854143120,0.00054089,97948.0,97947.0,0.00415992]
[1738854143711,0.00154089,97948.0,97947.0,0.01315992]
[1738854143912,0.00054089,97948.0,97947.0,0.00013911]
[1738854144118,0.00054089,97948.0,97947.0,0.01213911]
[1738854144321,0.00154089,97948.0,97947.0,0.01213911]
[1738854144749,0.08374089,97948.0,97947.0,0.00913911]
[1738854145108,0.08374089,97948.0,97947.0,0.01213911]
[1738854145519,0.10457577,97948.0,97947.0,0.00913911]
[1738854146145,0.10357577,97948.0,97947.0,0.00013911]
[1738854146369,0.15259581,97948.0,97947.0,0.00413911]
[1738854146541,0.15259581,97948.0,97947.0,0.00024591]
[1738854146983,0.15157577,97948.0,97947.0,0.00424591]
[1738854147195,0.15157577,97948.0,97947.0,0.00024591]
[1738854147612,0.15157577,97948.0,97947.0,0.00224591]
[1738854147813,0.15157577,97948.0,97947.0,0.00024591]
[1738854148402,0.08374089,97948.0,97947.0,0.00024591]
[1738854148613,0.001,97948.0,97947.0,0.15441076]
[1738854148811,0.0817,97957.0,97947.0,0.15441073]
[1738854149025,0.00054089,97948.0,97947.0,0.15338991]
[1738854149218,0.00054089,97948.0,97947.0,0.00424591]
[1738854149475,0.00054089,97948.0,97947.0,0.2569144]
[1738854149686,0.00054089,97948.0,97947.0,0.25589356]
[1738854149898,0.00154089,97948.0,97947.0,0.26489356]
[1738854150105,0.00154089,97948.0,97947.0,0.00924591]
[1738854150488,0.00154089,97948.0,97947.0,0.00024591]
[1738854150687,0.00054089,97948.0,97947.0,0.00024591]
[1738854150907,0.00154089,97948.0,97947.0,0.00924591]
[1738854151868,0.00154089,97948.0,97947.0,0.01024591]
[1738854152395,0.00154089,97948.0,97947.0,0.00924591]
[1738854152591,0.00154089,97948.0,97947.0,0.00024591]
[1738854152592,0.00054089,97948.0,97947.0,0.00024591]
[1738854153110,0.00054089,97948.0,97947.0,0.00924591]
[1738854153111,0.00154089,97948.0,97947.0,0.00924591]
[1738854153311,0.00054089,97948.0,97947.0,0.00024591]
[1738854153707,0.00154089,97948.0,97947.0,0.00924591]
[1738854153909,0.00154089,97948.0,97947.0,0.01124591]
[1738854154315,0.00154089,97948.0,97947.0,0.00924591]
[1738854154692,0.00154089,97948.0,97947.0,0.01124591]
[1738854154693,0.07694089,97948.0,97947.0,0.01124591]
[1738854155360,0.23008289,97948.0,97947.0,0.01124591]
[1738854155532,0.07694089,97948.0,97947.0,0.01124591]
[1738854156342,0.08725749,97948.0,97947.0,0.01124591]
[1738854156544,0.29011953,97948.0,97947.0,0.01124591]
[1738854156769,0.28909949,97948.0,97947.0,0.01124591]
[1738854157191,0.13595749,97948.0,97947.0,0.01124591]
[1738854157589,0.28909949,97948.0,97947.0,0.01124591]
[1738854157956,0.13595749,97948.0,97947.0,0.01124591]
[1738854158796,0.28909949,97948.0,97947.0,0.01124591]
[1738854159431,0.39160314,97948.0,97947.0,0.01124591]
[1738854159614,0.39160314,97948.0,97906.0,0.204276]
[1738854159615,0.00054089,97897.0,97896.0,0.0001067]
[1738854159815,0.00054089,97897.0,97896.0,0.00057033]
[1738854160675,0.08114089,97897.0,97896.0,0.00057033]
[1738854160879,0.08214089,97897.0,97896.0,0.00957033]
[1738854161236,0.00154089,97897.0,97896.0,0.16279333]
[1738854161439,0.00154089,97897.0,97896.0,0.01257033]
[1738854162039,0.00154089,97897.0,97896.0,0.00957033]
[1738854162243,0.00054089,97897.0,97896.0,0.00057033]
[1738854162475,0.00154089,97897.0,97896.0,0.00857033]
[1738854162680,0.00154089,97897.0,97896.0,0.26531841]
[1738854162881,0.00054089,97897.0,97896.0,0.25629698]
[1738854163082,0.00154089,97897.0,97896.0,0.26329698]
[1738854163489,0.00054089,97897.0,97896.0,0.25829698]
[1738854163697,0.00154089,97897.0,97896.0,0.26529698]
[1738854163877,0.00154089,97897.0,97896.0,0.25629698]
[1738854164072,0.00154089,97897.0,97896.0,0.15379333]
[1738854164278,0.00154089,97897.0,97896.0,0.15579333]
[1738854164719,0.00154089,97897.0,97896.0,0.15481467]
[1738854164944,0.00154089,97897.0,97896.0,0.00057033]
[1738854165346,0.00154089,97897.0,97896.0,0.00257033]
[1738854165467,0.00254089,97897.0,97896.0,0.01057033]
[1738854165675,0.00054089,97897.0,97896.0,0.00257033]
[1738854166076,0.00154089,97897.0,97896.0,0.00257033]
[1738854166273,0.07884089,97897.0,97896.0,0.00257033]
[1738854166590,0.09125525,97897.0,97896.0,0.00257033]
[1738854166816,0.09023521,97897.0,97896.0,0.00057033]
[1738854166992,0.08923521,97897.0,97896.0,0.00057033]
[1738854167192,0.09025525,97897.0,97896.0,0.00357033]
[1738854167401,0.24347725,97897.0,97896.0,0.00357033]
[1738854167619,0.08923521,97897.0,97896.0,0.00057033]
[1738854167818,0.09023521,97897.0,97896.0,0.00057033]
[1738854168021,0.09023521,97897.0,97896.0,0.00157033]
[1738854169093,0.09023521,97897.0,97863.0,0.0001068]
[1738854169094,0.153267,97868.0,97863.0,0.0001068]
[1738854169243,0.204361,97866.0,97849.0,0.0085656]
[1738854169445,0.00054089,97846.0,97831.0,0.0002]
[1738854169946,0.00054089,97846.0,97836.0,0.204422]
[1738854170126,0.00054089,97846.0,97839.0,0.204417]
[1738854170326,0.00054089,97846.0,97831.0,0.0002]
[1738854170533,0.00054089,97846.0,97845.0,0.00804]
[1738854170735,0.00054089,97846.0,97823.0,0.1863962]
[1738854170736,0.0787,97845.0,97823.0,0.1863962]